[Event "*** Titled Tuesday Blitz"]
[Site "Chess.com"]
[Date "2021.04.27"]
[Round "3"]
[White "Vladyslav_Puchka"]
[Black "Kostukov_Alex"]
[Result "0-1"]
[WhiteElo "2106"]
[BlackElo "2310"]
[TimeControl "180+1"]
[EndTime "10:29:51 PDT"]
[Termination "Kostukov_Alex won by resignation"]

1. d4 {[%clk 0:02:58.1]} 1... g6 {[%clk 0:03:00.1]} 2. c4 {[%clk 0:02:57.5]}
2... Bg7 {[%clk 0:03:00.6]} 3. Nc3 {[%clk 0:02:57.8]} 3... d6 {[%clk 0:03:01.2]}
4. g3 {[%clk 0:02:56.8]} 4... e5 {[%clk 0:03:01.5]} 5. dxe5 {[%clk 0:02:55.5]}
5... dxe5 {[%clk 0:03:02.4]} 6. Qxd8+ {[%clk 0:02:55.2]} 6... Kxd8 {[%clk
0:03:03.3]} 7. e4 {[%clk 0:02:53.4]} 7... f6 {[%clk 0:03:02.9]} 8. Bg2 {[%clk
0:02:51.8]} 8... c6 {[%clk 0:02:59.9]} 9. Nge2 {[%clk 0:02:50.5]} 9... Be6
{[%clk 0:03:00.1]} 10. b3 {[%clk 0:02:50.3]} 10... Nd7 {[%clk 0:02:59.8]} 11.
O-O {[%clk 0:02:50]} 11... Kc7 {[%clk 0:02:56.3]} 12. Be3 {[%clk 0:02:45.7]}
12... Bh6 {[%clk 0:02:55.7]} 13. Bxh6 {[%clk 0:02:40.2]} 13... Nxh6 {[%clk
0:02:56.6]} 14. h3 {[%clk 0:02:40.5]} 14... Nf7 {[%clk 0:02:54.4]} 15. Rad1
{[%clk 0:02:37.3]} 15... a5 {[%clk 0:02:54]} 16. f4 {[%clk 0:02:32.2]} 16... Nc5
{[%clk 0:02:36.5]} 17. Kh2 {[%clk 0:02:04.8]} 17... Rhd8 {[%clk 0:02:33.9]} 18.
g4 {[%clk 0:01:55.6]} 18... Nd3 {[%clk 0:02:09.8]} 19. f5 {[%clk 0:01:41]} 19...
gxf5 {[%clk 0:02:03.4]} 20. exf5 {[%clk 0:01:38.1]} 20... Bc8 {[%clk 0:01:58]}
21. Ne4 {[%clk 0:01:31.4]} 21... a4 {[%clk 0:01:39.4]} 22. b4 {[%clk 0:01:05]}
22... Nxb4 {[%clk 0:01:37.6]} 23. Rxd8 {[%clk 0:01:04.8]} 23... Nxd8 {[%clk
0:01:32.9]} 24. N2c3 {[%clk 0:00:53.4]} 24... a3 {[%clk 0:01:06.8]} 25. Nxf6
{[%clk 0:00:50.4]} 25... h6 {[%clk 0:01:05.5]} 26. Re1 {[%clk 0:00:25.9]} 26...
Nf7 {[%clk 0:01:02.2]} 27. h4 {[%clk 0:00:20.6]} 27... Ra5 {[%clk 0:00:56.7]}
28. Nfe4 {[%clk 0:00:13.5]} 28... Nd3 {[%clk 0:00:46.3]} 29. Re2 {[%clk
0:00:11.9]} 29... Nf4 {[%clk 0:00:46.4]} 30. Rd2 {[%clk 0:00:12]} 30... h5
{[%clk 0:00:46.3]} 31. Kg3 {[%clk 0:00:10]} 31... hxg4 {[%clk 0:00:44]} 32. Kxg4
{[%clk 0:00:10.3]} 32... Nh6+ {[%clk 0:00:44.7]} 33. Kg5 {[%clk 0:00:08.1]}
33... Nxf5 {[%clk 0:00:44.3]} 34. h5 {[%clk 0:00:07.8]} 34... Nd4 {[%clk
0:00:31]} 35. h6 {[%clk 0:00:06.3]} 35... Be6 {[%clk 0:00:26.1]} 36. Kf6 {[%clk
0:00:05.8]} 36... Bxc4 {[%clk 0:00:22.5]} 37. h7 {[%clk 0:00:05.4]} 37... Ra8
{[%clk 0:00:22.1]} 38. Kg7 {[%clk 0:00:05.8]} 38... Nde6+ {[%clk 0:00:17.6]} 39.
Kf6 {[%clk 0:00:05.7]} 39... Rh8 {[%clk 0:00:17.5]} 40. Ng5 {[%clk 0:00:04.8]}
40... Nxg5 {[%clk 0:00:16]} 41. Kxg5 {[%clk 0:00:05.7]} 41... Rxh7 {[%clk
0:00:16.4]} 42. Be4 {[%clk 0:00:06.2]} 42... Rg7+ {[%clk 0:00:16.4]} 43. Kf6
{[%clk 0:00:06.4]} 43... Rg3 {[%clk 0:00:16.4]} 44. Nb1 {[%clk 0:00:04.5]} 44...
Nd5+ {[%clk 0:00:12.1]} 45. Kxe5 {[%clk 0:00:04.5]} 45... Re3 {[%clk 0:00:11.5]}
46. Kd4 {[%clk 0:00:03.8]} 46... Re1 {[%clk 0:00:11.3]} 47. Bxd5 {[%clk
0:00:04.1]} 47... Rxb1 {[%clk 0:00:10.5]} 48. Bxc4 {[%clk 0:00:04.4]} 48... Rb2
{[%clk 0:00:10.6]} 49. Rd3 {[%clk 0:00:03.6]} 49... b5 {[%clk 0:00:10]} 50. Bb3
{[%clk 0:00:03.7]} 50... Kb6 {[%clk 0:00:10.1]} 51. Rc3 {[%clk 0:00:03.1]} 51...
c5+ {[%clk 0:00:10.4]} 52. Rxc5 {[%clk 0:00:01.7]} 52... Rd2+ {[%clk 0:00:10.5]}
53. Kc3 {[%clk 0:00:02]} 53... Rg2 {[%clk 0:00:09.5]} 54. Re5 {[%clk 0:00:02]}
54... Rg3+ {[%clk 0:00:10]} 55. Kc2 {[%clk 0:00:02.2]} 55... Ka5 {[%clk
0:00:10.9]} 56. Re6 {[%clk 0:00:03.1]} 56... Kb4 {[%clk 0:00:11.8]} 57. Re4+
{[%clk 0:00:03.8]} 57... Kc5 {[%clk 0:00:11.9]} 58. Re2 {[%clk 0:00:04.7]} 58...
Kb4 {[%clk 0:00:11.5]} 59. Rd2 {[%clk 0:00:05.6]} 59... Re3 {[%clk 0:00:11.2]}
60. Rf2 {[%clk 0:00:06.1]} 60... Rc3+ {[%clk 0:00:11]} 61. Kd2 {[%clk
0:00:05.9]} 61... Rxb3 {[%clk 0:00:06.6]} 62. axb3 {[%clk 0:00:05.4]} 62... Kxb3
{[%clk 0:00:07.5]} 63. Rf3+ {[%clk 0:00:05.7]} 63... Kb2 {[%clk 0:00:07.7]} 64.
Kd3 {[%clk 0:00:05.1]} 64... a2 {[%clk 0:00:06.6]} 65. Rf2+ {[%clk 0:00:05.8]}
65... Kb1 {[%clk 0:00:06.1]} 66. Rf1+ {[%clk 0:00:06.2]} 66... Kb2 {[%clk
0:00:07]} 67. Rf2+ {[%clk 0:00:06.6]} 67... Ka3 {[%clk 0:00:07]} 68. Rf1 {[%clk
0:00:06.4]} 68... b4 {[%clk 0:00:07.4]} 69. Kc4 {[%clk 0:00:06.2]} 69... b3
{[%clk 0:00:07.9]} 70. Kc3 {[%clk 0:00:05.7]} 70... b2 {[%clk 0:00:07.6]} 71.
Kc2 {[%clk 0:00:06.3]} 71... a1=Q {[%clk 0:00:07]} 72. Rb1 {[%clk 0:00:06.6]}
72... Ka2 {[%clk 0:00:05.9]} 73. Rxa1+ {[%clk 0:00:01.8]} 73... bxa1=Q {[%clk
0:00:06.1]} 0-1

[Event "*** Titled Tuesday Blitz"]
[Site "Chess.com"]
[Date "2021.04.27"]
[Round "3"]
[White "debashisdebs"]
[Black "Goryachkina"]
[Result "1-0"]
[WhiteElo "2941"]
[BlackElo "2658"]
[TimeControl "180+1"]
[EndTime "10:29:52 PDT"]
[Termination "debashisdebs won by resignation"]

1. d4 {[%clk 0:03:00.9]} 1... d5 {[%clk 0:02:58.9]} 2. c4 {[%clk 0:03:00.5]}
2... e6 {[%clk 0:02:59.3]} 3. Nf3 {[%clk 0:03:00.6]} 3... Nf6 {[%clk 0:02:59.5]}
4. g3 {[%clk 0:03:00.8]} 4... Bb4+ {[%clk 0:02:59.1]} 5. Bd2 {[%clk 0:02:59.6]}
5... Bd6 {[%clk 0:02:59.2]} 6. Bg2 {[%clk 0:03:00]} 6... O-O {[%clk 0:02:59.3]}
7. Nc3 {[%clk 0:02:58.9]} 7... c6 {[%clk 0:02:59.3]} 8. Bg5 {[%clk 0:02:51.7]}
8... h6 {[%clk 0:02:55.1]} 9. Bxf6 {[%clk 0:02:46.7]} 9... Qxf6 {[%clk 0:02:56]}
10. O-O {[%clk 0:02:47.1]} 10... Qd8 {[%clk 0:02:45.6]} 11. Rc1 {[%clk
0:02:39.6]} 11... Nd7 {[%clk 0:02:43.3]} 12. b3 {[%clk 0:02:17.3]} 12... Qe7
{[%clk 0:02:30.7]} 13. c5 {[%clk 0:02:07.7]} 13... Bc7 {[%clk 0:02:28.8]} 14. e4
{[%clk 0:02:08.6]} 14... b6 {[%clk 0:01:56.1]} 15. Re1 {[%clk 0:02:04.4]} 15...
Qd8 {[%clk 0:01:53.4]} 16. b4 {[%clk 0:01:50.9]} 16... a5 {[%clk 0:01:41.4]} 17.
exd5 {[%clk 0:01:35.6]} 17... axb4 {[%clk 0:01:00.7]} 18. dxc6 {[%clk
0:01:29.8]} 18... bxc3 {[%clk 0:01:00.7]} 19. cxd7 {[%clk 0:01:29.9]} 19... Bxd7
{[%clk 0:01:01]} 20. Ne5 {[%clk 0:01:04.1]} 20... Rxa2 {[%clk 0:00:30.2]} 21.
Qb3 {[%clk 0:00:49.8]} 21... Ra5 {[%clk 0:00:13.4]} 22. Qxc3 {[%clk 0:00:45.5]}
22... bxc5 {[%clk 0:00:11.3]} 23. dxc5 {[%clk 0:00:42.4]} 23... Bb5 {[%clk
0:00:09.2]} 24. c6 {[%clk 0:00:33.6]} 24... Qa8 {[%clk 0:00:04.7]} 25. Nd7
{[%clk 0:00:22]} 25... Rd8 {[%clk 0:00:04.2]} 26. Ra1 {[%clk 0:00:20.5]} 26...
Ra2 {[%clk 0:00:02.5]} 27. Rxa2 {[%clk 0:00:15.6]} 27... Qxa2 {[%clk 0:00:03.4]}
28. Qc5 {[%clk 0:00:16.2]} 28... Qd2 {[%clk 0:00:03.1]} 29. Rb1 {[%clk
0:00:03.9]} 29... Bd3 {[%clk 0:00:03.3]} 30. Qc1 {[%clk 0:00:02.9]} 30... Qxc1+
{[%clk 0:00:03.1]} 31. Rxc1 {[%clk 0:00:03.8]} 31... e5 {[%clk 0:00:03]} 32. h4
{[%clk 0:00:03.8]} 32... e4 {[%clk 0:00:03.3]} 33. Nc5 {[%clk 0:00:03.1]} 33...
f5 {[%clk 0:00:02.8]} 34. Ne6 {[%clk 0:00:02.7]} 34... Rc8 {[%clk 0:00:03.3]}
35. Bh3 {[%clk 0:00:01.8]} 35... g6 {[%clk 0:00:03.2]} 36. Nxc7 {[%clk 0:00:02]}
36... Rxc7 {[%clk 0:00:02.9]} 37. h5 {[%clk 0:00:02.9]} 37... Bb5 {[%clk
0:00:02.7]} 38. hxg6 {[%clk 0:00:02.6]} 38... Rxc6 {[%clk 0:00:03.1]} 39. Rxc6
{[%clk 0:00:02]} 39... Bxc6 {[%clk 0:00:04]} 40. Bxf5 {[%clk 0:00:02.8]} 40...
Kg7 {[%clk 0:00:04.9]} 41. Kf1 {[%clk 0:00:03.4]} 41... Kf6 {[%clk 0:00:04.4]}
42. g4 {[%clk 0:00:03.6]} 42... h5 {[%clk 0:00:04.4]} 43. g7 {[%clk 0:00:03.9]}
43... Kxg7 {[%clk 0:00:04.5]} 44. gxh5 {[%clk 0:00:04.6]} 44... Kf6 {[%clk
0:00:04.6]} 45. Bg6 {[%clk 0:00:05.2]} 45... Kg5 {[%clk 0:00:04.8]} 46. Ke2
{[%clk 0:00:05.5]} 46... Bd7 {[%clk 0:00:02.3]} 47. Ke3 {[%clk 0:00:05.9]} 47...
Bc6 {[%clk 0:00:02.2]} 48. Bxe4 {[%clk 0:00:05]} 48... Bd7 {[%clk 0:00:01.8]}
49. Bg6 {[%clk 0:00:05.5]} 49... Kh6 {[%clk 0:00:01.9]} 50. f4 {[%clk
0:00:05.6]} 50... Bc8 {[%clk 0:00:02.3]} 51. Ke4 {[%clk 0:00:06]} 51... Bd7
{[%clk 0:00:02.9]} 52. Ke5 {[%clk 0:00:06.5]} 52... Bc8 {[%clk 0:00:03.4]} 53.
Kf6 {[%clk 0:00:06.5]} 53... Bd7 {[%clk 0:00:03.6]} 54. Bf5 {[%clk 0:00:06.3]}
54... Bc6 {[%clk 0:00:04]} 55. Bg4 {[%clk 0:00:06.7]} 55... Be4 {[%clk
0:00:04.1]} 56. Ke5 {[%clk 0:00:06.9]} 56... Bc2 {[%clk 0:00:03.9]} 57. Bf5
{[%clk 0:00:06.9]} 57... Ba4 {[%clk 0:00:04.2]} 58. Bg6 {[%clk 0:00:05.1]} 58...
Bd7 {[%clk 0:00:03.8]} 59. Kf6 {[%clk 0:00:05.4]} 59... Bc8 {[%clk 0:00:03.5]}
60. Ke7 {[%clk 0:00:05.8]} 60... Bg4 {[%clk 0:00:03.2]} 61. Kd6 {[%clk 0:00:06]}
61... Bc8 {[%clk 0:00:03.1]} 62. Ke5 {[%clk 0:00:06.3]} 62... Bd7 {[%clk
0:00:03.3]} 63. Bf5 {[%clk 0:00:06.5]} 63... Ba4 {[%clk 0:00:03.7]} 64. Bg4
{[%clk 0:00:06.9]} 64... Bc2 {[%clk 0:00:03.8]} 65. Bf3 {[%clk 0:00:07.4]} 65...
Bd3 {[%clk 0:00:04.1]} 66. Be4 {[%clk 0:00:07.7]} 66... Bc4 {[%clk 0:00:03.4]}
67. f5 {[%clk 0:00:08]} 67... Kxh5 {[%clk 0:00:03.9]} 68. f6 {[%clk 0:00:08.9]}
68... Bb5 {[%clk 0:00:03.7]} 69. f7 {[%clk 0:00:07.2]} 1-0

[Event "*** Titled Tuesday Blitz"]
[Site "Chess.com"]
[Date "2021.04.27"]
[Round "3"]
[White "Willychess95"]
[Black "lamomiablanca"]
[Result "1-0"]
[WhiteElo "2603"]
[BlackElo "2392"]
[TimeControl "180+1"]
[EndTime "10:29:52 PDT"]
[Termination "Willychess95 won by resignation"]

1. e4 {[%clk 0:03:00.9]} 1... c5 {[%clk 0:02:59.3]} 2. Nf3 {[%clk 0:02:59.6]}
2... Nc6 {[%clk 0:02:58.9]} 3. d4 {[%clk 0:02:58.9]} 3... cxd4 {[%clk
0:02:58.4]} 4. Nxd4 {[%clk 0:02:59.8]} 4... g6 {[%clk 0:02:58.9]} 5. c4 {[%clk
0:02:59]} 5... Nf6 {[%clk 0:02:58.2]} 6. Nc3 {[%clk 0:02:57.7]} 6... d6 {[%clk
0:02:58.4]} 7. Be2 {[%clk 0:02:55]} 7... Nxd4 {[%clk 0:02:58]} 8. Qxd4 {[%clk
0:02:54]} 8... Bg7 {[%clk 0:02:57.8]} 9. Be3 {[%clk 0:02:53.6]} 9... O-O {[%clk
0:02:56.9]} 10. Qd2 {[%clk 0:02:53.4]} 10... a5 {[%clk 0:02:56.8]} 11. O-O
{[%clk 0:02:50.5]} 11... a4 {[%clk 0:02:56.8]} 12. f3 {[%clk 0:02:48.5]} 12...
Qa5 {[%clk 0:02:49.6]} 13. Rab1 {[%clk 0:02:44.9]} 13... Be6 {[%clk 0:02:45.2]}
14. Rfc1 {[%clk 0:02:43.2]} 14... Rfc8 {[%clk 0:02:44.3]} 15. b3 {[%clk
0:02:39]} 15... axb3 {[%clk 0:02:43.5]} 16. axb3 {[%clk 0:02:39.9]} 16... Qb4
{[%clk 0:02:37.7]} 17. Na4 {[%clk 0:02:15.1]} 17... Qxd2 {[%clk 0:02:22.2]} 18.
Bxd2 {[%clk 0:02:16]} 18... Nd7 {[%clk 0:02:22.2]} 19. Be3 {[%clk 0:02:14.1]}
19... f5 {[%clk 0:02:11.7]} 20. Bd3 {[%clk 0:02:00.5]} 20... Ne5 {[%clk
0:01:40.6]} 21. Bc2 {[%clk 0:01:55.1]} 21... Nd7 {[%clk 0:01:30.7]} 22. exf5
{[%clk 0:01:53]} 22... gxf5 {[%clk 0:01:18.8]} 23. Re1 {[%clk 0:01:23.1]} 23...
Kf7 {[%clk 0:01:17.8]} 24. Bd3 {[%clk 0:01:05.2]} 24... Rc6 {[%clk 0:01:09.9]}
25. f4 {[%clk 0:00:51.6]} 25... Nc5 {[%clk 0:01:00.6]} 26. Nxc5 {[%clk
0:00:44.3]} 26... dxc5 {[%clk 0:01:00.7]} 27. Be2 {[%clk 0:00:39.5]} 27... Ra3
{[%clk 0:00:42.4]} 28. Bf3 {[%clk 0:00:35.4]} 28... Rc7 {[%clk 0:00:38.4]} 29.
Bc1 {[%clk 0:00:27.5]} 29... Ra2 {[%clk 0:00:36.5]} 30. Bh5+ {[%clk 0:00:26.9]}
30... Kf6 {[%clk 0:00:31.9]} 31. Bb2+ {[%clk 0:00:24.8]} 31... Rxb2 {[%clk
0:00:30.5]} 32. Rxb2 {[%clk 0:00:25.7]} 32... Rd7 {[%clk 0:00:24.4]} 33. Rbe2
{[%clk 0:00:24.9]} 33... Rd6 {[%clk 0:00:24.6]} 34. Bf3 {[%clk 0:00:24.4]} 34...
b6 {[%clk 0:00:20.6]} 35. Bh5 {[%clk 0:00:24.2]} 35... Bf8 {[%clk 0:00:19.4]}
36. g3 {[%clk 0:00:23.8]} 36... Bd7 {[%clk 0:00:18.3]} 37. Bf3 {[%clk
0:00:23.7]} 37... e6 {[%clk 0:00:16.9]} 38. Re3 {[%clk 0:00:23]} 38... Rd4
{[%clk 0:00:16.7]} 39. Rd1 {[%clk 0:00:21.1]} 39... Kf7 {[%clk 0:00:14.4]} 40.
Red3 {[%clk 0:00:21.2]} 40... Bg7 {[%clk 0:00:14]} 41. Rxd4 {[%clk 0:00:21.3]}
41... Bxd4+ {[%clk 0:00:13.5]} 42. Kf1 {[%clk 0:00:21.9]} 42... b5 {[%clk
0:00:13.6]} 43. cxb5 {[%clk 0:00:15]} 43... Bxb5+ {[%clk 0:00:13.2]} 44. Be2
{[%clk 0:00:15.6]} 44... Bc6 {[%clk 0:00:13.5]} 45. Bc4 {[%clk 0:00:15.8]} 45...
Kf6 {[%clk 0:00:12.6]} 46. Re1 {[%clk 0:00:15]} 46... Be4 {[%clk 0:00:12.8]} 47.
Ke2 {[%clk 0:00:12.6]} 47... h6 {[%clk 0:00:12.9]} 48. Rd1 {[%clk 0:00:11.5]}
48... Ke7 {[%clk 0:00:12.8]} 49. Bd3 {[%clk 0:00:11.2]} 49... Bd5 {[%clk
0:00:12.2]} 50. Bc4 {[%clk 0:00:11.2]} 50... Be4 {[%clk 0:00:12.4]} 51. Kd2
{[%clk 0:00:11.4]} 51... Kd6 {[%clk 0:00:12.1]} 52. Re1 {[%clk 0:00:11.4]} 52...
e5 {[%clk 0:00:12.1]} 53. fxe5+ {[%clk 0:00:10.7]} 53... Kxe5 {[%clk 0:00:12.5]}
54. Bd3 {[%clk 0:00:11.2]} 54... Kd5 {[%clk 0:00:12.2]} 55. Bxe4+ {[%clk
0:00:11.3]} 55... fxe4 {[%clk 0:00:13.1]} 56. Rf1 {[%clk 0:00:09.2]} 56... Ke6
{[%clk 0:00:10.4]} 57. Rf4 {[%clk 0:00:06.8]} 57... e3+ {[%clk 0:00:08.7]} 58.
Kd3 {[%clk 0:00:06.1]} 58... Ke5 {[%clk 0:00:07.8]} 59. Re4+ {[%clk 0:00:05.5]}
59... Kf5 {[%clk 0:00:07.7]} 60. Re8 {[%clk 0:00:05.2]} 60... Kg4 {[%clk
0:00:07.6]} 61. b4 {[%clk 0:00:04.5]} 61... Kh3 {[%clk 0:00:05.1]} 62. b5 {[%clk
0:00:04.8]} 62... Kxh2 {[%clk 0:00:04.3]} 63. b6 {[%clk 0:00:05.2]} 63... c4+
{[%clk 0:00:04.5]} 64. Kxd4 {[%clk 0:00:05]} 64... c3 {[%clk 0:00:03.7]} 65.
Kxc3 {[%clk 0:00:05.1]} 65... Kxg3 {[%clk 0:00:03.8]} 66. Kd3 {[%clk 0:00:05.1]}
66... e2 {[%clk 0:00:04.7]} 67. Rxe2 {[%clk 0:00:04.9]} 1-0

[Event "*** Titled Tuesday Blitz"]
[Site "Chess.com"]
[Date "2021.04.27"]
[Round "3"]
[White "sokidze"]
[Black "mamey78"]
[Result "1/2-1/2"]
[WhiteElo "2703"]
[BlackElo "2494"]
[TimeControl "180+1"]
[EndTime "10:30:09 PDT"]
[Termination "Game drawn - timeout vs insufficient material"]

1. e4 {[%clk 0:03:00.9]} 1... e5 {[%clk 0:02:25.3]} 2. Nf3 {[%clk 0:02:58.5]}
2... Nc6 {[%clk 0:02:25.3]} 3. Bb5 {[%clk 0:02:58.8]} 3... a6 {[%clk 0:02:25.5]}
4. Ba4 {[%clk 0:02:59.2]} 4... Nf6 {[%clk 0:02:25.7]} 5. O-O {[%clk 0:02:59.8]}
5... b5 {[%clk 0:02:26.1]} 6. Bb3 {[%clk 0:02:59.6]} 6... Be7 {[%clk 0:02:26.9]}
7. Re1 {[%clk 0:02:56.1]} 7... O-O {[%clk 0:02:27]} 8. a4 {[%clk 0:02:56.1]}
8... Bb7 {[%clk 0:02:26.5]} 9. d3 {[%clk 0:02:54.6]} 9... Re8 {[%clk 0:02:25.9]}
10. c3 {[%clk 0:02:33.9]} 10... Bf8 {[%clk 0:02:22.7]} 11. Nbd2 {[%clk
0:02:24.3]} 11... d5 {[%clk 0:02:21.6]} 12. exd5 {[%clk 0:02:20.4]} 12... Nxd5
{[%clk 0:02:22.5]} 13. Ne4 {[%clk 0:02:20.5]} 13... Qd7 {[%clk 0:02:15.6]} 14.
Nfg5 {[%clk 0:01:52.3]} 14... Rad8 {[%clk 0:02:02.4]} 15. Nxh7 {[%clk
0:01:26.4]} 15... Kxh7 {[%clk 0:01:51.1]} 16. Bxd5 {[%clk 0:00:55.3]} 16... Qxd5
{[%clk 0:01:48.9]} 17. Qh5+ {[%clk 0:00:55.8]} 17... Kg8 {[%clk 0:01:48.3]} 18.
Ng5 {[%clk 0:00:51]} 18... Bd6 {[%clk 0:01:16.8]} 19. c4 {[%clk 0:00:35.6]}
19... bxc4 {[%clk 0:00:55.9]} 20. dxc4 {[%clk 0:00:36.5]} 20... Qxc4 {[%clk
0:00:55.7]} 21. b3 {[%clk 0:00:32.7]} 21... Qd5 {[%clk 0:00:46.4]} 22. Qh7+
{[%clk 0:00:23.6]} 22... Kf8 {[%clk 0:00:45]} 23. Qh8+ {[%clk 0:00:23.4]} 23...
Ke7 {[%clk 0:00:43.7]} 24. Qxg7 {[%clk 0:00:22.8]} 24... Nd4 {[%clk 0:00:39]}
25. Ne4 {[%clk 0:00:17.9]} 25... Ne2+ {[%clk 0:00:26.6]} 26. Kf1 {[%clk
0:00:17.2]} 26... Qxe4 {[%clk 0:00:26.5]} 27. Bg5+ {[%clk 0:00:13]} 27... Kd7
{[%clk 0:00:25.2]} 28. Bxd8 {[%clk 0:00:11.5]} 28... Qxg2+ {[%clk 0:00:21.5]}
29. Qxg2 {[%clk 0:00:11.1]} 29... Bxg2+ {[%clk 0:00:19]} 30. Kxg2 {[%clk
0:00:11.6]} 30... Nf4+ {[%clk 0:00:19.6]} 31. Kf3 {[%clk 0:00:12.2]} 31... Rxd8
{[%clk 0:00:19.5]} 32. h4 {[%clk 0:00:11.4]} 32... Rb8 {[%clk 0:00:17.9]} 33.
Rab1 {[%clk 0:00:11]} 33... Rh8 {[%clk 0:00:17.3]} 34. Rh1 {[%clk 0:00:11]}
34... f5 {[%clk 0:00:17.1]} 35. b4 {[%clk 0:00:10.6]} 35... e4+ {[%clk
0:00:15.9]} 36. Ke3 {[%clk 0:00:11.1]} 36... Nd5+ {[%clk 0:00:15.4]} 37. Kd4
{[%clk 0:00:11.8]} 37... Nxb4 {[%clk 0:00:15.5]} 38. Rbg1 {[%clk 0:00:12.5]}
38... Nc6+ {[%clk 0:00:15.4]} 39. Kc4 {[%clk 0:00:11.5]} 39... Ne5+ {[%clk
0:00:14.7]} 40. Kb3 {[%clk 0:00:11.2]} 40... Nf3 {[%clk 0:00:13.9]} 41. Rg7+
{[%clk 0:00:11.1]} 41... Ke6 {[%clk 0:00:14.1]} 42. h5 {[%clk 0:00:12]} 42...
Be5 {[%clk 0:00:13.3]} 43. Rg6+ {[%clk 0:00:09.8]} 43... Kf7 {[%clk 0:00:12.2]}
44. Rc6 {[%clk 0:00:09.8]} 44... Nd4+ {[%clk 0:00:11.4]} 45. Kc4 {[%clk
0:00:08.3]} 45... Nxc6 {[%clk 0:00:12.3]} 46. Kd5 {[%clk 0:00:08.7]} 46... Kf6
{[%clk 0:00:11.4]} 47. Kxc6 {[%clk 0:00:09]} 47... Rh6 {[%clk 0:00:10]} 48. Kb7
{[%clk 0:00:08.7]} 48... Kg5 {[%clk 0:00:09.2]} 49. a5 {[%clk 0:00:08.7]} 49...
Kf4 {[%clk 0:00:08.7]} 50. Rh3 {[%clk 0:00:07.7]} 50... Bd4 {[%clk 0:00:08.4]}
51. Rh4+ {[%clk 0:00:06.9]} 51... Kf3 {[%clk 0:00:07.9]} 52. Rh3+ {[%clk
0:00:07.6]} 52... Kg2 {[%clk 0:00:07.9]} 53. Rg3+ {[%clk 0:00:06.8]} 53... Kxf2
{[%clk 0:00:07.2]} 54. Rg5 {[%clk 0:00:07.6]} 54... f4 {[%clk 0:00:04.9]} 55.
Rg4 {[%clk 0:00:08.1]} 55... f3 {[%clk 0:00:02.7]} 56. Rxe4 {[%clk 0:00:08.1]}
56... Be3 {[%clk 0:00:03.6]} 57. Ka8 {[%clk 0:00:05.7]} 57... Ke2 {[%clk
0:00:04.4]} 58. Ra4 {[%clk 0:00:05.5]} 58... f2 {[%clk 0:00:03.7]} 59. Ra2+
{[%clk 0:00:06.4]} 59... Bd2 {[%clk 0:00:03.1]} 60. Ra4 {[%clk 0:00:04.8]} 60...
f1=Q {[%clk 0:00:02.5]} 61. Re4+ {[%clk 0:00:05.7]} 61... Be3 {[%clk 0:00:01.7]}
62. Rb4 {[%clk 0:00:06.6]} 62... Qf3+ {[%clk 0:00:01.4]} 63. Kb8 {[%clk
0:00:06.4]} 63... Rxh5 {[%clk 0:00:01.7]} 64. Rb2+ {[%clk 0:00:06.2]} 64... Bd2
{[%clk 0:00:02.5]} 65. Rb7 {[%clk 0:00:06.9]} 65... Rh8+ {[%clk 0:00:02.7]} 66.
Ka7 {[%clk 0:00:07.5]} 66... Qxb7+ {[%clk 0:00:00.4]} 67. Kxb7 {[%clk
0:00:07.4]} 67... c5 {[%clk 0:00:01.2]} 68. Ka7 {[%clk 0:00:08.3]} 68... c4
{[%clk 0:00:01.4]} 69. Kxa6 {[%clk 0:00:09.2]} 69... c3 {[%clk 0:00:01.9]} 70.
Kb5 {[%clk 0:00:10.1]} 70... c2 {[%clk 0:00:02.1]} 71. Kb6 {[%clk 0:00:11]}
71... c1=Q {[%clk 0:00:02.4]} 72. a6 {[%clk 0:00:11.9]} 72... Rh6+ {[%clk
0:00:02.8]} 73. Ka7 {[%clk 0:00:12.8]} 73... Qb2 {[%clk 0:00:03.3]} 74. Ka8
{[%clk 0:00:13.1]} 74... Qa3 {[%clk 0:00:03.4]} 75. Ka7 {[%clk 0:00:14]} 75...
Qxa6+ {[%clk 0:00:00.5]} 76. Kb8 {[%clk 0:00:14.9]} 1/2-1/2